[Event "*** SCC Grand Prix: Titled Tuesday Blitz"]
[Site "Chess.com"]
[Date "2020.09.08"]
[Round "8"]
[White "Ginger_GM"]
[Black "XiaoKangZhong"]
[Result "1-0"]
[WhiteElo "2598"]
[BlackElo "2430"]
[TimeControl "180+1"]
[EndTime "11:36:08 PDT"]
[Termination "Ginger_GM won on time"]

1. e4 {[%clk 0:03:00.9]} 1... c6 {[%clk 0:02:59.4]} 2. Bc4 {[%clk 0:03:00.4]}
2... d5 {[%clk 0:02:58.9]} 3. Bb3 {[%clk 0:02:58.9]} 3... dxe4 {[%clk
0:02:52.7]} 4. Qh5 {[%clk 0:02:58.6]} 4... g6 {[%clk 0:02:46.9]} 5. Qh4 {[%clk
0:02:57.6]} 5... Nf6 {[%clk 0:02:35.9]} 6. Nc3 {[%clk 0:02:56.5]} 6... Bg7
{[%clk 0:02:14.9]} 7. f3 {[%clk 0:02:55.3]} 7... exf3 {[%clk 0:02:14.3]} 8. Nxf3
{[%clk 0:02:54.7]} 8... O-O {[%clk 0:02:13.9]} 9. d4 {[%clk 0:02:54.3]} 9...
Nbd7 {[%clk 0:02:00.3]} 10. Bh6 {[%clk 0:02:51.1]} 10... Re8 {[%clk 0:01:57.3]}
11. Ng5 {[%clk 0:02:37.2]} 11... e6 {[%clk 0:01:55.8]} 12. O-O {[%clk 0:02:36]}
12... Nf8 {[%clk 0:01:55.5]} 13. Rad1 {[%clk 0:02:26.5]} 13... Bxh6 {[%clk
0:01:09.8]} 14. Qxh6 {[%clk 0:02:26.2]} 14... Ng4 {[%clk 0:01:10]} 15. Qh4
{[%clk 0:02:18.4]} 15... h6 {[%clk 0:00:59.9]} 16. Nce4 {[%clk 0:01:55.9]} 16...
f5 {[%clk 0:00:39.6]} 17. Qxg4 {[%clk 0:01:12.6]} 17... fxg4 {[%clk 0:00:38]}
18. Nf7 {[%clk 0:00:58.8]} 18... Qe7 {[%clk 0:00:27.5]} 19. Nxh6+ {[%clk
0:00:29.2]} 19... Kg7 {[%clk 0:00:26.2]} 20. Nxg4 {[%clk 0:00:29.4]} 20... Nh7
{[%clk 0:00:25.8]} 21. Ne5 {[%clk 0:00:25.3]} 21... Rf8 {[%clk 0:00:23.6]} 22.
Rxf8 {[%clk 0:00:25.1]} 22... Qxf8 {[%clk 0:00:24.5]} 23. Rf1 {[%clk 0:00:24.9]}
23... Qe7 {[%clk 0:00:24.4]} 24. Nc5 {[%clk 0:00:08.9]} 24... b6 {[%clk
0:00:17.9]} 25. Ncd3 {[%clk 0:00:08.8]} 1-0

[Event "*** SCC Grand Prix: Titled Tuesday Blitz"]
[Site "Chess.com"]
[Date "2020.09.08"]
[Round "8"]
[White "Deepweb2020"]
[Black "floplover"]
[Result "0-1"]
[WhiteElo "2204"]
[BlackElo "2306"]
[TimeControl "180+1"]
[EndTime "11:36:09 PDT"]
[Termination "floplover won by resignation"]

1. d4 {[%clk 0:03:00.9]} 1... d5 {[%clk 0:02:59.7]} 2. c4 {[%clk 0:02:57.5]}
2... e6 {[%clk 0:03:00]} 3. Nf3 {[%clk 0:02:56]} 3... Nf6 {[%clk 0:02:57.1]} 4.
g3 {[%clk 0:02:56.2]} 4... Be7 {[%clk 0:02:56.1]} 5. Bg2 {[%clk 0:02:56.4]} 5...
O-O {[%clk 0:02:56.7]} 6. O-O {[%clk 0:02:56.8]} 6... dxc4 {[%clk 0:02:57.2]} 7.
Qc2 {[%clk 0:02:56.3]} 7... a6 {[%clk 0:02:57]} 8. a4 {[%clk 0:02:56.3]} 8...
Bd7 {[%clk 0:02:57]} 9. Qxc4 {[%clk 0:02:56.5]} 9... Bc6 {[%clk 0:02:56]} 10.
Nc3 {[%clk 0:02:56.8]} 10... b5 {[%clk 0:02:51.9]} 11. Qb3 {[%clk 0:02:42.4]}
11... b4 {[%clk 0:02:49.2]} 12. Nb1 {[%clk 0:02:41.9]} 12... Bd5 {[%clk
0:02:42.2]} 13. Qc2 {[%clk 0:02:40]} 13... c5 {[%clk 0:02:31.5]} 14. dxc5 {[%clk
0:02:28.9]} 14... Nc6 {[%clk 0:02:24.1]} 15. Nbd2 {[%clk 0:02:21.7]} 15... e5
{[%clk 0:02:00.4]} 16. b3 {[%clk 0:02:05.2]} 16... Rc8 {[%clk 0:01:54.6]} 17.
Bb2 {[%clk 0:02:00.6]} 17... Re8 {[%clk 0:01:34.5]} 18. e4 {[%clk 0:01:44.6]}
18... Be6 {[%clk 0:01:29.1]} 19. Nxe5 {[%clk 0:01:41.9]} 19... Nxe5 {[%clk
0:01:24.8]} 20. Bxe5 {[%clk 0:01:41.4]} 20... Rxc5 {[%clk 0:01:25.3]} 21. Qb2
{[%clk 0:01:36.8]} 21... Rxe5 {[%clk 0:01:25.1]} 22. Qxe5 {[%clk 0:01:35]} 22...
Qxd2 {[%clk 0:01:25.6]} 23. Qa5 {[%clk 0:01:30.9]} 23... Bxb3 {[%clk 0:01:16.4]}
24. Qxa6 {[%clk 0:01:26.3]} 24... Bc5 {[%clk 0:01:08.4]} 25. e5 {[%clk
0:01:22.3]} 25... Ng4 {[%clk 0:01:06]} 26. Qb5 {[%clk 0:01:17.9]} 26... Bxf2+
{[%clk 0:01:02.4]} 27. Kh1 {[%clk 0:01:15.6]} 27... Rd8 {[%clk 0:00:53.2]} 28.
a5 {[%clk 0:01:10.3]} 28... Ne3 {[%clk 0:00:52.9]} 29. Be4 {[%clk 0:00:52]}
29... Bc4 {[%clk 0:00:42]} 30. Qb7 {[%clk 0:00:40.8]} 30... Nxf1 {[%clk
0:00:37.5]} 31. Rxf1 {[%clk 0:00:40.9]} 31... Bxf1 {[%clk 0:00:36]} 32. e6
{[%clk 0:00:37.8]} 32... fxe6 {[%clk 0:00:33.7]} 33. a6 {[%clk 0:00:35.7]} 33...
Bh3 {[%clk 0:00:21.7]} 34. Bxh7+ {[%clk 0:00:31.2]} 34... Kh8 {[%clk 0:00:19.6]}
0-1

[Event "*** SCC Grand Prix: Titled Tuesday Blitz"]
[Site "Chess.com"]
[Date "2020.09.08"]
[Round "8"]
[White "PotapovaM"]
[Black "GaboSalazar2001"]
[Result "0-1"]
[WhiteElo "2487"]
[BlackElo "2358"]
[TimeControl "180+1"]
[EndTime "11:36:10 PDT"]
[Termination "GaboSalazar2001 won by checkmate"]

1. e4 {[%clk 0:02:55.3]} 1... c5 {[%clk 0:03:00.6]} 2. Nf3 {[%clk 0:02:54.1]}
2... d6 {[%clk 0:03:01.2]} 3. d4 {[%clk 0:02:53.7]} 3... cxd4 {[%clk 0:03:02.1]}
4. Nxd4 {[%clk 0:02:54.6]} 4... Nf6 {[%clk 0:03:02.8]} 5. Nc3 {[%clk 0:02:55.5]}
5... e6 {[%clk 0:03:03.4]} 6. Bg5 {[%clk 0:02:54.1]} 6... a6 {[%clk 0:03:02.8]}
7. Qd2 {[%clk 0:02:53.3]} 7... b5 {[%clk 0:03:01.8]} 8. Bd3 {[%clk 0:02:43.8]}
8... Bb7 {[%clk 0:02:57.8]} 9. f3 {[%clk 0:02:43.6]} 9... h6 {[%clk 0:02:36.1]}
10. Be3 {[%clk 0:02:37.7]} 10... Nbd7 {[%clk 0:02:33.9]} 11. a4 {[%clk 0:02:34]}
11... b4 {[%clk 0:02:32]} 12. Nce2 {[%clk 0:02:34.4]} 12... d5 {[%clk
0:02:31.5]} 13. e5 {[%clk 0:02:21.6]} 13... Nxe5 {[%clk 0:02:23.9]} 14. O-O-O
{[%clk 0:02:20.4]} 14... Qa5 {[%clk 0:02:08.2]} 15. b3 {[%clk 0:02:15.3]} 15...
Rc8 {[%clk 0:02:04.3]} 16. Kb1 {[%clk 0:02:14.8]} 16... Be7 {[%clk 0:01:38.3]}
17. g4 {[%clk 0:02:10.9]} 17... Nfd7 {[%clk 0:01:31]} 18. h4 {[%clk 0:02:06.6]}
18... Nc5 {[%clk 0:01:25.6]} 19. g5 {[%clk 0:02:03]} 19... Ncxd3 {[%clk
0:01:23.7]} 20. cxd3 {[%clk 0:02:02.3]} 20... Kd7 {[%clk 0:01:18.2]} 21. f4
{[%clk 0:01:55.5]} 21... Ng4 {[%clk 0:01:12.4]} 22. g6 {[%clk 0:01:48.4]} 22...
fxg6 {[%clk 0:01:07.2]} 23. Rhg1 {[%clk 0:01:48.1]} 23... h5 {[%clk 0:01:07.2]}
24. f5 {[%clk 0:01:44]} 24... gxf5 {[%clk 0:01:01.8]} 25. Nf4 {[%clk 0:01:43.8]}
25... e5 {[%clk 0:01:01.2]} 26. Nxf5 {[%clk 0:01:35.7]} 26... exf4 {[%clk
0:00:54.7]} 27. Bd4 {[%clk 0:01:35.9]} 27... Bf6 {[%clk 0:00:52.1]} 28. Qxf4
{[%clk 0:01:35.1]} 28... Qc7 {[%clk 0:00:49.6]} 29. Qd2 {[%clk 0:01:22.8]} 29...
Bxd4 {[%clk 0:00:44.9]} 30. Nxd4 {[%clk 0:01:23.7]} 30... Qc3 {[%clk 0:00:44.1]}
31. Qf4 {[%clk 0:01:24.3]} 31... Rhf8 {[%clk 0:00:39.4]} 32. Nf5 {[%clk
0:01:20.5]} 32... Qxb3+ {[%clk 0:00:34.4]} 33. Ka1 {[%clk 0:01:21.1]} 33...
Qxa4+ {[%clk 0:00:34.6]} 34. Kb1 {[%clk 0:01:20.9]} 34... Qc2+ {[%clk
0:00:34.7]} 35. Ka1 {[%clk 0:01:21.1]} 35... Qc3+ {[%clk 0:00:27.3]} 36. Kb1
{[%clk 0:01:19.8]} 36... Qe5 {[%clk 0:00:25]} 37. Qxb4 {[%clk 0:01:17.5]} 37...
Bc6 {[%clk 0:00:18.4]} 38. Rge1 {[%clk 0:01:07.6]} 38... Rb8 {[%clk 0:00:18.7]}
39. Rxe5 {[%clk 0:00:39.9]} 39... Rxb4+ {[%clk 0:00:18.7]} 40. Kc2 {[%clk
0:00:40.8]} 40... Nxe5 {[%clk 0:00:19.1]} 41. Nxg7 {[%clk 0:00:40.9]} 41... Rf2+
{[%clk 0:00:18.5]} 42. Kc3 {[%clk 0:00:41.1]} 42... a5 {[%clk 0:00:17.1]} 43.
Nxh5 {[%clk 0:00:39.6]} 43... d4# {[%clk 0:00:17.2]} 0-1

[Event "*** SCC Grand Prix: Titled Tuesday Blitz"]
[Site "Chess.com"]
[Date "2020.09.08"]
[Round "8"]
[White "Korchmar_Vasiliy"]
[Black "1stSecond"]
[Result "0-1"]
[WhiteElo "2614"]
[BlackElo "2798"]
[TimeControl "180+1"]
[EndTime "11:36:11 PDT"]
[Termination "1stSecond won on time"]

1. d4 {[%clk 0:03:00.9]} 1... Nf6 {[%clk 0:02:56.4]} 2. Nf3 {[%clk 0:03:01.5]}
2... e6 {[%clk 0:02:56.6]} 3. Bf4 {[%clk 0:03:01.5]} 3... c5 {[%clk 0:02:53.7]}
4. c3 {[%clk 0:03:01.8]} 4... Nc6 {[%clk 0:02:53.9]} 5. e3 {[%clk 0:02:54.1]}
5... d5 {[%clk 0:02:51.9]} 6. Nbd2 {[%clk 0:02:53.1]} 6... Nh5 {[%clk
0:02:51.4]} 7. Bg5 {[%clk 0:02:48.3]} 7... Qb6 {[%clk 0:02:48.9]} 8. Rb1 {[%clk
0:02:48.3]} 8... h6 {[%clk 0:02:48.7]} 9. Bh4 {[%clk 0:02:48.1]} 9... g5 {[%clk
0:02:48.3]} 10. Ne5 {[%clk 0:02:36.7]} 10... Nxe5 {[%clk 0:02:42.8]} 11. dxe5
{[%clk 0:02:37.6]} 11... Ng7 {[%clk 0:02:24.1]} 12. Bg3 {[%clk 0:02:36.5]} 12...
h5 {[%clk 0:02:16]} 13. h3 {[%clk 0:02:22.2]} 13... Nf5 {[%clk 0:02:13.4]} 14.
Bh2 {[%clk 0:02:21.4]} 14... g4 {[%clk 0:02:10.3]} 15. hxg4 {[%clk 0:01:57.8]}
15... hxg4 {[%clk 0:02:09.9]} 16. Qxg4 {[%clk 0:01:58.1]} 16... Bg7 {[%clk
0:01:26.7]} 17. Bd3 {[%clk 0:01:56.3]} 17... Bxe5 {[%clk 0:01:22.5]} 18. Bxe5
{[%clk 0:01:35.7]} 18... Rxh1+ {[%clk 0:01:21.4]} 19. Ke2 {[%clk 0:01:36.3]}
19... Rxb1 {[%clk 0:01:08.1]} 20. Qg8+ {[%clk 0:01:35.3]} 20... Ke7 {[%clk
0:01:08.4]} 21. Bxb1 {[%clk 0:01:23.4]} 21... Qxb2 {[%clk 0:00:53]} 22. g4
{[%clk 0:00:52]} 22... Nd6 {[%clk 0:00:47.1]} 23. Bxd6+ {[%clk 0:00:07.8]} 23...
Kxd6 {[%clk 0:00:48]} 24. Qf8+ {[%clk 0:00:05]} 24... Kc6 {[%clk 0:00:45.2]} 25.
Qxf7 {[%clk 0:00:04.2]} 25... Bd7 {[%clk 0:00:44.2]} 26. Qf6 {[%clk 0:00:02]}
26... Kc7 {[%clk 0:00:21.6]} 27. Qe5+ {[%clk 0:00:01.6]} 27... Kb6 {[%clk
0:00:22]} 28. g5 {[%clk 0:00:01.5]} 28... Bb5+ {[%clk 0:00:21.7]} 0-1

[Event "*** SCC Grand Prix: Titled Tuesday Blitz"]
[Site "Chess.com"]
[Date "2020.09.08"]
[Round "8"]
[White "Schandenfreude"]
[Black "Kislov_Oleg"]
[Result "0-1"]
[WhiteElo "2506"]
[BlackElo "2395"]
[TimeControl "180+1"]
[EndTime "11:36:11 PDT"]
[Termination "Kislov_Oleg won by resignation"]

1. Nf3 {[%clk 0:02:53.4]} 1... d5 {[%clk 0:02:59.8]} 2. g3 {[%clk 0:02:50.1]}
2... Nf6 {[%clk 0:02:59.9]} 3. Bg2 {[%clk 0:02:49.5]} 3... c6 {[%clk 0:03:00.4]}
4. O-O {[%clk 0:02:45.8]} 4... Bg4 {[%clk 0:02:59.7]} 5. c4 {[%clk 0:02:43.9]}
5... e6 {[%clk 0:02:59.3]} 6. cxd5 {[%clk 0:02:43.3]} 6... exd5 {[%clk
0:02:56.1]} 7. d3 {[%clk 0:02:42.5]} 7... Bd6 {[%clk 0:02:31.4]} 8. Qb3 {[%clk
0:02:42.2]} 8... Qb6 {[%clk 0:02:30.4]} 9. Qc2 {[%clk 0:02:42.3]} 9... O-O
{[%clk 0:02:29.5]} 10. Nc3 {[%clk 0:02:31.8]} 10... Nbd7 {[%clk 0:02:29.1]} 11.
e4 {[%clk 0:02:17.2]} 11... Rfe8 {[%clk 0:02:12]} 12. Be3 {[%clk 0:02:06.1]}
12... Qa5 {[%clk 0:01:53]} 13. a3 {[%clk 0:01:53.9]} 13... dxe4 {[%clk 0:01:38]}
14. dxe4 {[%clk 0:01:50.7]} 14... Qh5 {[%clk 0:01:37.5]} 15. Nh4 {[%clk
0:01:33.3]} 15... Ne5 {[%clk 0:01:26.1]} 16. f4 {[%clk 0:01:10.9]} 16... Nc4
{[%clk 0:01:26]} 17. Bf2 {[%clk 0:01:10.1]} 17... Be7 {[%clk 0:01:10.3]} 18. e5
{[%clk 0:01:02.5]} 18... Nd7 {[%clk 0:01:09.4]} 19. h3 {[%clk 0:00:55.5]} 19...
Be6 {[%clk 0:01:00]} 20. f5 {[%clk 0:00:49]} 20... Bd5 {[%clk 0:00:48.5]} 21.
Nxd5 {[%clk 0:00:37.8]} 21... cxd5 {[%clk 0:00:46.5]} 22. Bxd5 {[%clk
0:00:37.5]} 22... Ncb6 {[%clk 0:00:44.6]} 23. g4 {[%clk 0:00:32.1]} 23... Qh6
{[%clk 0:00:41]} 24. f6 {[%clk 0:00:25.1]} 24... Nxd5 {[%clk 0:00:27.5]} 25. Nf5
{[%clk 0:00:23]} 25... Qxh3 {[%clk 0:00:27.4]} 26. Nxe7+ {[%clk 0:00:15.2]}
26... Nxe7 {[%clk 0:00:26.4]} 27. fxe7 {[%clk 0:00:16.1]} 27... Qxg4+ {[%clk
0:00:27.1]} 28. Kh2 {[%clk 0:00:15.8]} 28... Nxe5 {[%clk 0:00:27.6]} 29. Bg3
{[%clk 0:00:14.1]} 29... Rxe7 {[%clk 0:00:24.8]} 30. Rf4 {[%clk 0:00:13]} 30...
Nf3+ {[%clk 0:00:20.2]} 31. Kg2 {[%clk 0:00:11.9]} 31... Nh4+ {[%clk 0:00:20.5]}
32. Kh2 {[%clk 0:00:11]} 32... Re2+ {[%clk 0:00:20.8]} 0-1

[Event "*** SCC Grand Prix: Titled Tuesday Blitz"]
[Site "Chess.com"]
[Date "2020.09.08"]
[Round "8"]
[White "diamonds13"]
[Black "lelya96"]
[Result "1-0"]
[WhiteElo "2290"]
[BlackElo "2159"]
[TimeControl "180+1"]
[EndTime "11:36:13 PDT"]
[Termination "diamonds13 won by resignation"]

1. d4 {[%clk 0:03:00.9]} 1... d5 {[%clk 0:02:58.5]} 2. c4 {[%clk 0:03:01.1]}
2... c6 {[%clk 0:02:58.9]} 3. Nf3 {[%clk 0:03:00.7]} 3... Nf6 {[%clk 0:02:59]}
4. Nbd2 {[%clk 0:02:55]} 4... Bg4 {[%clk 0:02:57.2]} 5. h3 {[%clk 0:02:54.5]}
5... Bh5 {[%clk 0:02:55.8]} 6. g4 {[%clk 0:02:54.8]} 6... Bg6 {[%clk 0:02:55.4]}
7. Bg2 {[%clk 0:02:55.4]} 7... Nbd7 {[%clk 0:02:53.9]} 8. e3 {[%clk 0:02:55.4]}
8... dxc4 {[%clk 0:02:52.2]} 9. Nxc4 {[%clk 0:02:53.9]} 9... e6 {[%clk 0:02:52]}
10. O-O {[%clk 0:02:53.5]} 10... Be7 {[%clk 0:02:51.1]} 11. Nce5 {[%clk
0:02:53.5]} 11... O-O {[%clk 0:02:49]} 12. b3 {[%clk 0:02:53.3]} 12... Be4
{[%clk 0:02:43.1]} 13. Bb2 {[%clk 0:02:50.4]} 13... Nd5 {[%clk 0:02:42.5]} 14.
Nc4 {[%clk 0:02:45.4]} 14... b5 {[%clk 0:02:34.1]} 15. Ncd2 {[%clk 0:02:44]}
15... Bg6 {[%clk 0:02:32.4]} 16. Ne1 {[%clk 0:02:38.8]} 16... f5 {[%clk
0:02:27.2]} 17. Qe2 {[%clk 0:02:37.3]} 17... fxg4 {[%clk 0:02:24.7]} 18. hxg4
{[%clk 0:02:36.9]} 18... c5 {[%clk 0:02:07.5]} 19. Qxb5 {[%clk 0:02:31.4]} 19...
Rb8 {[%clk 0:02:02.4]} 20. Qe2 {[%clk 0:02:28.6]} 20... cxd4 {[%clk 0:02:00.6]}
21. Bxd4 {[%clk 0:02:26]} 21... Nb4 {[%clk 0:01:42.7]} 22. Nc4 {[%clk
0:02:22.4]} 22... Bf6 {[%clk 0:01:15]} 23. Rd1 {[%clk 0:02:20.7]} 23... Qe7
{[%clk 0:01:04.6]} 24. Bxa7 {[%clk 0:02:18.5]} 24... Ra8 {[%clk 0:00:57.8]} 25.
Bxa8 {[%clk 0:02:13.9]} 25... Rxa8 {[%clk 0:00:58.7]} 26. Bd4 {[%clk 0:02:09.7]}
26... Rxa2 {[%clk 0:00:58.1]} 27. Qf3 {[%clk 0:02:01.8]} 27... e5 {[%clk
0:00:55.5]} 28. Bc3 {[%clk 0:01:52.3]} 28... e4 {[%clk 0:00:51.3]} 29. Bxf6
{[%clk 0:01:52.1]} 29... Nxf6 {[%clk 0:00:42.5]} 30. Qf4 {[%clk 0:01:50.4]}
30... Nd3 {[%clk 0:00:22.3]} 31. Nxd3 {[%clk 0:01:48.8]} 31... exd3 {[%clk
0:00:22.4]} 32. Qb8+ {[%clk 0:01:44.4]} 32... Ne8 {[%clk 0:00:20.7]} 33. Ne5
{[%clk 0:01:39.8]} 33... Qe6 {[%clk 0:00:18.3]} 34. Nxg6 {[%clk 0:01:37.9]}
34... Qxg4+ {[%clk 0:00:17.8]} 35. Qg3 {[%clk 0:01:37.3]} 35... Qxg6 {[%clk
0:00:17.9]} 36. Qxg6 {[%clk 0:01:37.3]} 36... hxg6 {[%clk 0:00:18.8]} 37. Rxd3
{[%clk 0:01:37.8]} 37... Rb2 {[%clk 0:00:19.3]} 38. Rc1 {[%clk 0:01:37.3]} 38...
Nf6 {[%clk 0:00:19]} 39. Rc8+ {[%clk 0:01:37.3]} 39... Kh7 {[%clk 0:00:19.3]}
40. e4 {[%clk 0:01:36.1]} 40... Kh6 {[%clk 0:00:17.4]} 41. f4 {[%clk 0:01:34.7]}
41... Kh5 {[%clk 0:00:16.3]} 42. e5 {[%clk 0:01:31.1]} 42... Ne4 {[%clk
0:00:16]} 43. Re3 {[%clk 0:01:28.7]} 43... Rb1+ {[%clk 0:00:15.5]} 44. Kg2
{[%clk 0:01:28.3]} 44... Rb2+ {[%clk 0:00:15.4]} 45. Kh3 {[%clk 0:01:25.1]}
45... Nf2+ {[%clk 0:00:15.2]} 46. Kg3 {[%clk 0:01:23.3]} 46... Ng4 {[%clk
0:00:14.8]} 47. Rh8+ {[%clk 0:01:20.9]} 47... Nh6 {[%clk 0:00:14.8]} 48. e6
{[%clk 0:01:20.7]} 48... g5 {[%clk 0:00:13.5]} 49. e7 {[%clk 0:01:17.5]} 49...
gxf4+ {[%clk 0:00:13.8]} 50. Kxf4 {[%clk 0:01:17.5]} 50... g5+ {[%clk
0:00:14.1]} 51. Ke5 {[%clk 0:01:15.3]} 51... Kg6 {[%clk 0:00:13.1]} 52. e8=Q+
{[%clk 0:01:13.7]} 52... Nf7+ {[%clk 0:00:13.7]} 53. Ke6 {[%clk 0:01:13.7]} 1-0

[Event "*** SCC Grand Prix: Titled Tuesday Blitz"]
[Site "Chess.com"]
[Date "2020.09.08"]
[Round "8"]
[White "Ural_bogatyr"]
[Black "GMJustin"]
[Result "0-1"]
[WhiteElo "2329"]
[BlackElo "2237"]
[TimeControl "180+1"]
[EndTime "11:36:14 PDT"]
[Termination "GMJustin won by resignation"]

1. e4 {[%clk 0:03:00.9]} 1... c5 {[%clk 0:02:48.8]} 2. Nf3 {[%clk 0:02:59.7]}
2... d6 {[%clk 0:02:48]} 3. d4 {[%clk 0:02:59.5]} 3... cxd4 {[%clk 0:02:47.2]}
4. Qxd4 {[%clk 0:03:00.4]} 4... Nc6 {[%clk 0:02:38.6]} 5. Bb5 {[%clk 0:02:59.9]}
5... Bd7 {[%clk 0:02:34.2]} 6. Bxc6 {[%clk 0:02:59.7]} 6... Bxc6 {[%clk
0:02:33.3]} 7. Nc3 {[%clk 0:02:59.6]} 7... Nf6 {[%clk 0:02:32.7]} 8. Bg5 {[%clk
0:02:41.5]} 8... e6 {[%clk 0:02:32.2]} 9. O-O-O {[%clk 0:02:40.4]} 9... Be7
{[%clk 0:02:31.9]} 10. Qd3 {[%clk 0:02:38.6]} 10... Qa5 {[%clk 0:02:25.7]} 11.
Kb1 {[%clk 0:02:34.1]} 11... O-O {[%clk 0:02:18.4]} 12. h4 {[%clk 0:02:33.6]}
12... Rfc8 {[%clk 0:01:57]} 13. Nd4 {[%clk 0:02:31.3]} 13... Be8 {[%clk
0:01:51.7]} 14. f4 {[%clk 0:02:25.4]} 14... Bf8 {[%clk 0:01:10.6]} 15. f5 {[%clk
0:02:14.8]} 15... Bd7 {[%clk 0:00:56.1]} 16. Nb3 {[%clk 0:01:56.7]} 16... Qb4
{[%clk 0:00:39]} 17. e5 {[%clk 0:01:49.3]} 17... Ng4 {[%clk 0:00:30.6]} 18. fxe6
{[%clk 0:01:28.4]} 18... Bxe6 {[%clk 0:00:29.7]} 19. exd6 {[%clk 0:01:21.3]}
19... Nf2 {[%clk 0:00:27.3]} 20. Qe2 {[%clk 0:01:14.4]} 20... Nxd1 {[%clk
0:00:25.3]} 21. Rxd1 {[%clk 0:01:13.2]} 21... Bxd6 {[%clk 0:00:25.2]} 22. Ne4
{[%clk 0:00:59.9]} 22... Bf8 {[%clk 0:00:24.6]} 23. Bd2 {[%clk 0:00:53.4]} 23...
Qe7 {[%clk 0:00:22.5]} 24. Ng5 {[%clk 0:00:42.5]} 24... Bxb3 {[%clk 0:00:19.3]}
25. Qxe7 {[%clk 0:00:35.2]} 25... Bxc2+ {[%clk 0:00:19]} 26. Kc1 {[%clk
0:00:35.1]} 26... Bxd1+ {[%clk 0:00:17.4]} 27. Kxd1 {[%clk 0:00:36]} 27... Bxe7
{[%clk 0:00:17.4]} 28. Bc3 {[%clk 0:00:33.9]} 28... Rd8+ {[%clk 0:00:17.1]} 29.
Ke2 {[%clk 0:00:33.2]} 29... Bf6 {[%clk 0:00:17]} 30. Ne4 {[%clk 0:00:31.9]}
30... Bxc3 {[%clk 0:00:16.8]} 31. Nxc3 {[%clk 0:00:32.3]} 31... Rac8 {[%clk
0:00:17.1]} 32. Nb5 {[%clk 0:00:31.5]} 32... a6 {[%clk 0:00:17]} 33. Nc3 {[%clk
0:00:31.1]} 33... Rxc3 {[%clk 0:00:17.1]} 34. bxc3 {[%clk 0:00:30.8]} 34... b5
{[%clk 0:00:17.7]} 35. a3 {[%clk 0:00:30.5]} 35... f5 {[%clk 0:00:17.9]} 36. h5
{[%clk 0:00:30.4]} 36... Kf7 {[%clk 0:00:18.1]} 37. Ke3 {[%clk 0:00:30.8]} 37...
Ke6 {[%clk 0:00:18.4]} 38. g3 {[%clk 0:00:29.5]} 38... Ke5 {[%clk 0:00:18.4]}
39. Ke2 {[%clk 0:00:29.2]} 39... g6 {[%clk 0:00:18.8]} 40. h6 {[%clk 0:00:28.6]}
40... g5 {[%clk 0:00:18.9]} 41. Ke3 {[%clk 0:00:27.8]} 41... f4+ {[%clk
0:00:19.1]} 42. gxf4+ {[%clk 0:00:28.7]} 42... gxf4+ {[%clk 0:00:19.3]} 43. Kf3
{[%clk 0:00:29.6]} 43... Kf5 {[%clk 0:00:19.5]} 44. Ke2 {[%clk 0:00:29]} 0-1

[Event "*** SCC Grand Prix: Titled Tuesday Blitz"]
[Site "Chess.com"]
[Date "2020.09.08"]
[Round "8"]
[White "Machidon"]
[Black "MarceloPlaya"]
[Result "0-1"]
[WhiteElo "2524"]
[BlackElo "2364"]
[TimeControl "180+1"]
[EndTime "11:36:15 PDT"]
[Termination "MarceloPlaya won by resignation"]

1. d4 {[%clk 0:03:00.9]} 1... e6 {[%clk 0:02:59.9]} 2. c4 {[%clk 0:03:00.1]}
2... Nf6 {[%clk 0:02:59.3]} 3. Nc3 {[%clk 0:02:58.6]} 3... Bb4 {[%clk
0:02:58.9]} 4. e3 {[%clk 0:02:57.9]} 4... O-O {[%clk 0:02:57.6]} 5. Bd3 {[%clk
0:02:57]} 5... c5 {[%clk 0:02:57.3]} 6. Ne2 {[%clk 0:02:56.4]} 6... d6 {[%clk
0:02:57.2]} 7. O-O {[%clk 0:02:55.4]} 7... e5 {[%clk 0:02:56.6]} 8. Nd5 {[%clk
0:02:44.1]} 8... Nxd5 {[%clk 0:02:53.8]} 9. cxd5 {[%clk 0:02:45]} 9... Nd7
{[%clk 0:02:36.2]} 10. a3 {[%clk 0:02:41.2]} 10... Ba5 {[%clk 0:02:35.4]} 11.
dxc5 {[%clk 0:02:41.7]} 11... Nxc5 {[%clk 0:02:30.8]} 12. Bc2 {[%clk 0:02:38.8]}
12... Bc7 {[%clk 0:02:22.1]} 13. Nc3 {[%clk 0:02:31.4]} 13... f5 {[%clk
0:02:16.6]} 14. b4 {[%clk 0:02:19.3]} 14... Nd7 {[%clk 0:02:15.4]} 15. Bb2
{[%clk 0:02:18.5]} 15... Nf6 {[%clk 0:02:11.8]} 16. Rc1 {[%clk 0:02:14.9]} 16...
Qe7 {[%clk 0:02:00.5]} 17. Qe2 {[%clk 0:01:58.5]} 17... Bd7 {[%clk 0:01:57.3]}
18. Bb1 {[%clk 0:01:45.3]} 18... Rac8 {[%clk 0:01:55.5]} 19. a4 {[%clk 0:01:31]}
19... Ng4 {[%clk 0:01:26.1]} 20. h3 {[%clk 0:01:24.1]} 20... Nh6 {[%clk
0:01:23.2]} 21. f4 {[%clk 0:01:17.7]} 21... Be8 {[%clk 0:01:11.1]} 22. Nb5
{[%clk 0:01:12.8]} 22... Bxb5 {[%clk 0:01:04.7]} 23. Qxb5 {[%clk 0:01:10.5]}
23... Bb6 {[%clk 0:01:04.8]} 24. Rxc8 {[%clk 0:00:46.2]} 24... Bxe3+ {[%clk
0:01:01.9]} 25. Kh2 {[%clk 0:00:43.8]} 25... Rxc8 {[%clk 0:01:00.9]} 26. fxe5
{[%clk 0:00:42.5]} 26... f4 {[%clk 0:00:52.4]} 27. e6 {[%clk 0:00:32.4]} 27...
Qg5 {[%clk 0:00:46.7]} 28. Qd3 {[%clk 0:00:21.1]} 28... g6 {[%clk 0:00:20]} 29.
Qe4 {[%clk 0:00:19.7]} 29... Qg3+ {[%clk 0:00:16]} 30. Kh1 {[%clk 0:00:19.8]}
30... Ng4 {[%clk 0:00:16]} 0-1